[Event "8th Montevideo Open 2025"]
[Site "Montevideo"]
[Date "2025.02.07"]
[Round "7.16"]
[White "Carvalho, Guillermo"]
[Black "Lanzilotta, Filippo"]
[Result "1-0"]
[Annotator "NA RC"]
[ECO "A21"]
[WhiteElo "2094"]
[BlackElo "1854"]
[PlyCount "85"]
[EventDate "2025.02.01"]
[EventType "swiss"]
[EventCountry "URU"]
[SourceTitle "playchess.com"]
[Source "ChessBase"]
[SourceQuality "1"]
[TimeControl "5400+30"]

1. c4 {[%emt 0:00:16]} f5 {[%emt 0:05:56]} 2. Nc3 {[%emt 0:00:13]} Nf6 {[%emt 0:00:04]} 3. g3 {[%emt 0:00:14]} e5 {[%emt 0:00:03]} 4. Bg2 {[%emt 0:00:14]} Bb4 {[%emt 0:00:03]} 5. Qb3 {[%emt 0:03:04]} Bxc3 {[%emt 0:00:19]} 6. Qxc3 {[%emt 0:00:25]} d6 {[%emt 0:00:05]} 7. d4 {[%emt 0:03:19]} Nbd7 {[%emt 0:00:05]} 8. dxe5 {[%emt 0:00:29]} dxe5 {[%emt 1:27:55]} 9. Nh3 {[%emt 0:03:30]} O-O {[%emt 0:00:00]} 10. O-O {[%emt 0:00:23]} Qe7 {[%emt 0:00:00]} 11. b3 {[%emt 0:03:29]} Ne4 {[%emt 0:00:00]} 12. Qc2 {[%emt 0:01:22]} Ndf6 {[%emt 0:00:00]} 13. f3 {[%emt 0:13:03]} Qc5+ {[%emt 0:00:00]} 14. Kh1 {[%emt 0:00:32]} Nd6 {[%emt 0:00:00]} 15. Nf2 {[%emt 0:04:26]} e4 {[%emt 0:00:00]} 16. Bb2 {[%emt 0:02:20]} e3 {[%emt 0:00:00]} 17. Nd3 {[%emt 0:00:38]} Qc6 {[%emt 0:00:00]} 18. Qc3 {[%emt 0:02:56]} Nf7 {[%emt 0:00:00]} 19. Nb4 {[%emt 0:09:46]} Qc5 {[%emt 0:00:00]} 20. Nd5 {[%emt 0:03:23]} Nd6 {[%emt 0:00:00]} 21. Rac1 {[%emt 0:10:57]} b5 {[%emt 0:00:00]} 22. Nxf6+ {[%emt 0:05:44]} gxf6 {[%emt 0:00:00]} 23. cxb5 {[%emt 0:04:49]} Qxc3 {[%emt 0:00:00]} 24. Rxc3 {[%emt 0:00:19]} Nxb5 {[%emt 0:00:00]} 25. Rxe3 {[%emt 0:00:35]} Bb7 {[%emt 0:00:00]} 26. Rd1 {[%emt 0:03:51]} Rad8 {[%emt 0:00:00]} 27. Red3 {[%emt 0:00:16]} Rxd3 {[%emt 0:00:00]} 28. Rxd3 {[%emt 0:00:16]} Re8 {[%emt 0:00:00]} 29. Rd2 {[%emt 0:00:20]} Kf7 {[%emt 0:00:00]} 30. Kg1 {[%emt 0:00:14]} Nd6 {[%emt 0:00:00]} 31. Kf2 {[%emt 0:00:46]} a5 {[%emt 0:00:00]} 32. Rc2 {[%emt 0:01:08]} Re7 {[%emt 0:00:00]} 33. e3 {[%emt 0:00:43]} Ba6 {[%emt 0:00:00]} 34. Rc5 {[%emt 0:04:53]} a4 {[%emt 0:00:00]} 35. Ra5 {[%emt 0:00:38]} Bb5 {[%emt 0:00:00]} 36. Ba3 {[%emt 0:01:28]} axb3 {[%emt 0:00:00]} 37. Bxd6 {[%emt 0:01:38]} Bd3 {[%emt 0:00:00]} 38. Ba3 {[%emt 0:01:52]} Re5 {[%emt 0:00:00]} 39. Rxe5 {[%emt 0:00:37]} bxa2 {[%emt 0:00:00]} 40. Re7+ {[%emt 0:00:10]} Kf8 {[%emt 0:00:00]} 41. Rxc7+ {[%emt 0:00:15]} Ke8 {[%emt 0:00:00]} 42. Bb2 {[%emt 0:00:06]} a1=Q {[%emt 0:00:00]} 43. Bxa1 {[%emt 0:00:11]} 1-0

[Event "8th Montevideo Open 2025"]
[Site "Montevideo"]
[Date "2025.02.07"]
[Round "7.17"]
[White "Izquierdo, Daniel"]
[Black "Melani, Mauro"]
[Result "1-0"]
[Annotator "NA RC"]
[ECO "E91"]
[WhiteElo "2069"]
[BlackElo "1914"]
[PlyCount "57"]
[EventDate "2025.02.01"]
[EventType "swiss"]
[EventCountry "URU"]
[SourceTitle "playchess.com"]
[Source "ChessBase"]
[SourceQuality "1"]
[TimeControl "5400+30"]

1. Nf3 {[%emt 0:19:04]} Nf6 {[%emt 0:00:08]} 2. c4 {[%emt 0:00:05]} g6 {[%emt 0:00:07]} 3. Nc3 {[%emt 0:00:42]} Bg7 {[%emt 0:00:10]} 4. e4 {[%emt 0:00:07]} d6 {[%emt 0:00:15]} 5. d4 {[%emt 0:00:08]} O-O {[%emt 0:00:14]} 6. Be2 {[%emt 0:00:06]} Na6 {[%emt 0:00:17]} 7. Bg5 {[%emt 0:00:17]} h6 {[%emt 0:03:21]} 8. Bh4 {[%emt 0:00:13]} c5 {[%emt 0:00:17]} 9. d5 {[%emt 0:00:44]} Nc7 {[%emt 0:01:08]} 10. O-O {[%emt 0:00:24]} a6 {[%emt 0:02:19]} 11. Nd2 {[%emt 0:01:25]} g5 {[%emt 0:05:19]} 12. Bg3 {[%emt 0:00:42]} Bd7 {[%emt 0:06:54]} 13. e5 {[%emt 0:09:09]} dxe5 {[%emt 0:00:55]} 14. Bxe5 {[%emt 0:00:32]} Qc8 {[%emt 0:04:53]} 15. d6 {[%emt 0:04:41]} exd6 {[%emt 0:00:42]} 16. Bxd6 {[%emt 0:00:16]} Re8 {[%emt 0:02:44]} 17. Bxc5 {[%emt 0:02:54]} Ncd5 {[%emt 0:00:47]} 18. Bd4 {[%emt 0:02:07]} Nf4 {[%emt 0:00:45]} 19. Bf3 {[%emt 0:04:35]} Bf5 {[%emt 0:05:53]} 20. Qb3 {[%emt 0:06:47]} Qd7 {[%emt 0:11:14]} 21. Bxf6 {[%emt 0:04:54]} Bxf6 {[%emt 0:00:46]} 22. Nde4 {[%emt 0:41:38]} Be5 {[%emt 0:01:54]} 23. Rad1 {[%emt 0:00:00]} Qc7 {[%emt 0:50:58]} 24. Ng3 {[%emt 0:00:00]} Bd3 {[%emt 0:00:00]} 25. Rxd3 {[%emt 0:00:00]} Nxd3 {[%emt 0:00:00]} 26. Nd5 {[%emt 0:00:00]} Qa5 {[%emt 0:00:00]} 27. Qxd3 {[%emt 0:00:00]} Re6 {[%emt 0:00:00]} 28. Bg4 {[%emt 0:03:00]} Rd8 {[%emt 0:00:00]} 29. Bxe6 {[%emt 0:00:30]} 1-0

[Event "8th Montevideo Open 2025"]
[Site "Montevideo"]
[Date "2025.02.07"]
[Round "7.18"]
[White "Pascualvaca, Federico"]
[Black "Pichuaga, Juan Pablo"]
[Result "1/2-1/2"]
[Annotator "NA RC"]
[ECO "B51"]
[WhiteElo "1794"]
[BlackElo "1973"]
[PlyCount "50"]
[EventDate "2025.02.01"]
[EventType "swiss"]
[EventCountry "URU"]
[SourceTitle "playchess.com"]
[Source "ChessBase"]
[SourceQuality "1"]
[TimeControl "5400+30"]

1. e4 {[%emt 0:00:06]} c5 {[%emt 0:00:41]} 2. Nf3 {[%emt 0:00:20]} d6 {[%emt 1:30:49]} 3. Bb5+ {[%emt 1:31:34]} Nd7 {[%emt 0:00:00]} 4. Ba4 {[%emt 0:00:00]} a6 {[%emt 0:00:00]} 5. c4 {[%emt 0:01:00]} Ngf6 {[%emt 0:00:00]} 6. Nc3 {[%emt 0:00:00]} e6 {[%emt 0:00:00]} 7. O-O {[%emt 0:00:00]} Be7 {[%emt 0:00:00]} 8. d3 {[%emt 0:00:00]} O-O {[%emt 0:00:00]} 9. Ne1 {[%emt 0:00:00]} d5 {[%emt 0:00:00]} 10. Bxd7 {[%emt 0:00:00]} Qxd7 {[%emt 0:00:00]} 11. e5 {[%emt 0:00:00]} Ne8 {[%emt 0:00:00]} 12. Nf3 {[%emt 0:00:00]} b5 {[%emt 0:00:00]} 13. b3 {[%emt 0:00:00]} Bb7 {[%emt 0:00:00]} 14. Qe2 {[%emt 0:00:00]} Rd8 {[%emt 0:00:00]} 15. Bf4 {[%emt 0:00:00]} b4 {[%emt 0:00:00]} 16. Nb1 {[%emt 0:00:00]} f5 {[%emt 0:00:00]} 17. Bg5 {[%emt 0:00:00]} Bxg5 {[%emt 0:00:00]} 18. Nxg5 {[%emt 0:00:00]} h6 {[%emt 0:00:00]} 19. Nf3 {[%emt 0:00:00]} dxc4 {[%emt 0:00:00]} 20. dxc4 {[%emt 0:00:00]} Bxf3 {[%emt 0:00:00]} 21. Qxf3 {[%emt 0:00:00]} Qd4 {[%emt 0:00:00]} 22. Nd2 {[%emt 0:00:00]} Qxe5 {[%emt 0:00:00]} 23. Rfe1 {[%emt 0:00:00]} Qf6 {[%emt 0:00:00]} 24. Nf1 {[%emt 0:00:00]} e5 {[%emt 0:00:00]} 25. Qe3 {[%emt 0:00:00]} e4 {[%emt 0:00:00]} 1/2-1/2

[Event "8th Montevideo Open 2025"]
[Site "Montevideo"]
[Date "2025.02.07"]
[Round "7.19"]
[White "Guerrero, Alvaro"]
[Black "Perez Selios, Luis"]
[Result "1-0"]
[Annotator "NA RC"]
[ECO "A04"]
[WhiteElo "2028"]
[BlackElo "1801"]
[PlyCount "107"]
[EventDate "2025.02.01"]
[EventType "swiss"]
[EventCountry "URU"]
[SourceTitle "playchess.com"]
[Source "ChessBase"]
[SourceQuality "1"]
[TimeControl "5400+30"]

1. e4 {[%emt 0:17:02]} d6 {[%emt 0:00:14]} 2. Nf3 {[%emt 0:00:04]} g6 {[%emt 0:00:10]} 3. g3 {[%emt 0:00:15]} Nf6 {[%emt 0:01:22]} 4. Qe2 {[%emt 0:00:07]} Bg7 {[%emt 0:00:41]} 5. Bg2 {[%emt 0:00:03]} O-O {[%emt 0:00:28]} 6. O-O {[%emt 0:00:06]} c5 {[%emt 0:00:42]} 7. c3 {[%emt 0:01:19]} Nc6 {[%emt 0:02:12]} 8. d4 {[%emt 0:01:18]} Bg4 {[%emt 0:01:19]} 9. d5 {[%emt 0:02:25]} Ne5 {[%emt 0:01:09]} 10. Nbd2 {[%emt 0:00:28]} Nfd7 {[%emt 0:00:25]} 11. h3 {[%emt 0:00:10]} Nxf3+ {[%emt 0:02:21]} 12. Nxf3 {[%emt 0:00:06]} Bxf3 {[%emt 0:00:09]} 13. Bxf3 {[%emt 0:00:22]} a6 {[%emt 0:00:31]} 14. a4 {[%emt 0:01:23]} Rb8 {[%emt 0:00:09]} 15. a5 {[%emt 0:05:31]} Ne5 {[%emt 0:01:02]} 16. Bg2 {[%emt 0:00:03]} c4 {[%emt 0:00:51]} 17. Be3 {[%emt 0:00:08]} Qd7 {[%emt 0:00:58]} 18. Ba7 {[%emt 0:01:24]} Rbc8 {[%emt 0:01:11]} 19. Bb6 {[%emt 0:04:03]} Qb5 {[%emt 0:02:21]} 20. Rfc1 {[%emt 0:02:59]} Nd3 {[%emt 0:01:06]} 21. Rc2 {[%emt 0:00:07]} Nc5 {[%emt 0:00:05]} 22. f4 {[%emt 0:06:47]} Nb3 {[%emt 0:04:18]} 23. Ra3 {[%emt 0:00:09]} Rfe8 {[%emt 0:00:05]} 24. Qd1 {[%emt 0:04:58]} e6 {[%emt 0:06:13]} 25. dxe6 {[%emt 0:01:05]} Rxe6 {[%emt 0:00:18]} 26. Kh2 {[%emt 0:51:08]} Bf8 {[%emt 0:02:24]} 27. Ra2 {[%emt 0:00:00]} Rce8 {[%emt 0:00:07]} 28. Re2 {[%emt 0:00:00]} Kh8 {[%emt 0:05:48]} 29. Rf2 {[%emt 0:00:00]} R8e7 {[%emt 0:04:20]} 30. f5 {[%emt 0:00:00]} gxf5 {[%emt 0:01:09]} 31. Rxf5 {[%emt 0:00:00]} Re5 {[%emt 0:00:08]} 32. Rf6 {[%emt 0:00:00]} R5e6 {[%emt 0:01:16]} 33. Rf4 {[%emt 0:00:00]} Bg7 {[%emt 0:00:19]} 34. Rf5 {[%emt 0:00:00]} Re5 {[%emt 0:00:28]} 35. Qxd6 {[%emt 0:00:00]} Qe8 {[%emt 0:00:46]} 36. Rf2 {[%emt 0:00:00]} Rg5 {[%emt 0:01:12]} 37. Qd8 {[%emt 0:00:00]} Be5 {[%emt 0:00:30]} 38. Rf3 {[%emt 0:00:00]} f6 {[%emt 0:04:54]} 39. Ra4 {[%emt 0:00:00]} Rg8 {[%emt 0:01:04]} 40. Qxe8 {[%emt 0:00:00]} Rexe8 {[%emt 0:00:07]} 41. Re3 {[%emt 0:00:00]} Rg6 {[%emt 0:01:52]} 42. Rxc4 {[%emt 0:00:00]} Reg8 {[%emt 0:01:24]} 43. Rb4 {[%emt 0:00:00]} Bxg3+ {[%emt 0:00:41]} 44. Kh1 {[%emt 0:00:00]} Bf2 {[%emt 0:01:16]} 45. Re2 {[%emt 0:00:00]} Rxg2 {[%emt 0:03:42]} 46. Rxf2 {[%emt 0:00:00]} R2g3 {[%emt 0:01:28]} 47. Rxb3 {[%emt 0:00:00]} Rxh3+ {[%emt 0:00:25]} 48. Rh2 {[%emt 0:00:00]} Rf3 {[%emt 0:00:10]} 49. Rg2 {[%emt 0:00:00]} Re8 {[%emt 0:02:14]} 50. Rb4 {[%emt 0:00:00]} Re5 {[%emt 0:02:01]} 51. Bd4 {[%emt 0:00:00]} Rf1+ {[%emt 0:02:24]} 52. Rg1 {[%emt 0:00:00]} Rh5+ {[%emt 0:00:13]} 53. Kg2 {[%emt 0:13:30]} Rf4 {[%emt 0:00:44]} 54. Kg3 {[%emt 0:00:00]} 1-0

[Event "8th Montevideo Open 2025"]
[Site "Montevideo"]
[Date "2025.02.07"]
[Round "7.20"]
[White "Izquierdo, Sebastian"]
[Black "Barandiaran, Gabriel"]
[Result "1/2-1/2"]
[Annotator "NA RC"]
[ECO "E65"]
[WhiteElo "1970"]
[BlackElo "1830"]
[PlyCount "61"]
[EventDate "2025.02.01"]
[EventType "swiss"]
[EventCountry "URU"]
[SourceTitle "playchess.com"]
[Source "ChessBase"]
[SourceQuality "1"]
[TimeControl "5400+30"]

1. d4 {[%emt 0:17:19]} Nf6 {[%emt 0:00:31]} 2. Nf3 {[%emt 0:00:49]} g6 {[%emt 0:01:49]} 3. g3 {[%emt 0:00:14]} Bg7 {[%emt 0:00:05]} 4. Bg2 {[%emt 0:00:06]} d6 {[%emt 0:01:34]} 5. c4 {[%emt 0:00:22]} Nbd7 {[%emt 0:00:52]} 6. Nc3 {[%emt 0:01:06]} O-O {[%emt 0:00:11]} 7. O-O {[%emt 0:00:08]} c5 {[%emt 0:05:49]} 8. d5 {[%emt 0:01:58]} Ng4 {[%emt 0:04:35]} 9. h3 {[%emt 0:00:39]} Nge5 {[%emt 0:00:38]} 10. Nd2 {[%emt 0:00:45]} Nb6 {[%emt 0:00:45]} 11. Qb3 {[%emt 0:00:30]} f5 {[%emt 0:01:05]} 12. f4 {[%emt 0:00:36]} Nf7 {[%emt 0:00:27]} 13. a4 {[%emt 0:03:21]} Rb8 {[%emt 0:05:53]} 14. a5 {[%emt 0:02:42]} Na8 {[%emt 0:02:10]} 15. Nb5 {[%emt 0:00:58]} a6 {[%emt 0:01:09]} 16. Nc3 {[%emt 0:00:26]} e5 {[%emt 0:03:46]} 17. dxe6 {[%emt 0:00:46]} Bxe6 {[%emt 0:01:24]} 18. Nd5 {[%emt 0:04:59]} b5 {[%emt 0:07:16]} 19. axb6 {[%emt 0:00:32]} Nxb6 {[%emt 0:00:10]} 20. Qc2 {[%emt 1:02:14]} Re8 {[%emt 1:00:21]} 21. Nb3 {[%emt 0:00:00]} Nxd5 {[%emt 0:00:00]} 22. cxd5 {[%emt 0:00:00]} Bc8 {[%emt 0:00:00]} 23. Na5 {[%emt 0:00:00]} Rb5 24. Nc4 {[%emt 0:00:00]} a5 25. e3 {[%emt 0:02:30]} h5 {[%emt 0:02:30]} 26. h4 {[%emt 0:00:00]} Nh6 {[%emt 0:00:00]} 27. Bf3 {[%emt 0:00:00]} Ng4 {[%emt 0:00:00]} 28. Bxg4 {[%emt 0:00:00]} hxg4 {[%emt 0:00:00]} 29. Bd2 {[%emt 0:00:00]} Re4 {[%emt 0:00:00]} 30. b3 {[%emt 0:00:00]} Ba6 {[%emt 0:00:00]} 31. Ra2 {[%emt 0:00:00]} 1/2-1/2

[Event "8th Montevideo Open 2025"]
[Site "Montevideo"]
[Date "2025.02.07"]
[Round "7.21"]
[White "Delgado, Nazareno"]
[Black "Lanzilotta, Marcelo"]
[Result "1-0"]
[Annotator "NA RC"]
[ECO "B24"]
[WhiteElo "1819"]
[BlackElo "1958"]
[PlyCount "97"]
[EventDate "2025.02.01"]
[EventType "swiss"]
[EventCountry "URU"]
[SourceTitle "playchess.com"]
[Source "ChessBase"]
[SourceQuality "1"]
[TimeControl "5400+30"]

1. e4 {[%emt 0:00:03]} c5 {[%emt 0:05:11]} 2. Nc3 {[%emt 0:00:39]} e6 {[%emt 0:00:07]} 3. g3 {[%emt 0:00:32]} d5 {[%emt 0:00:11]} 4. exd5 {[%emt 0:00:04]} exd5 {[%emt 0:00:04]} 5. Bg2 {[%emt 0:00:06]} Nf6 {[%emt 0:00:04]} 6. d4 {[%emt 0:00:48]} Nc6 {[%emt 0:00:54]} 7. Nge2 {[%emt 0:02:02]} Be7 {[%emt 0:01:45]} 8. dxc5 {[%emt 0:01:22]} Be6 {[%emt 0:05:33]} 9. O-O {[%emt 0:04:26]} O-O {[%emt 0:00:08]} 10. Nf4 {[%emt 1:25:28]} d4 {[%emt 0:01:02]} 11. Ne4 {[%emt 0:00:00]} Nxe4 {[%emt 0:01:22]} 12. Bxe4 {[%emt 0:00:00]} Bxc5 {[%emt 0:00:11]} 13. Qh5 {[%emt 0:00:00]} h6 {[%emt 0:06:09]} 14. Nxe6 {[%emt 0:00:00]} fxe6 {[%emt 0:00:35]} 15. Qxc5 {[%emt 0:00:00]} Rc8 {[%emt 0:00:02]} 16. Qh5 {[%emt 0:00:00]} Qf6 {[%emt 0:03:04]} 17. Qg6 {[%emt 0:00:00]} b6 {[%emt 0:03:16]} 18. Qxf6 {[%emt 0:00:00]} Rxf6 {[%emt 0:00:16]} 19. Bd2 {[%emt 0:00:00]} Ne5 {[%emt 0:01:32]} 20. Bf4 {[%emt 0:00:00]} Nc4 {[%emt 0:01:18]} 21. b3 {[%emt 0:00:00]} Na3 {[%emt 0:00:05]} 22. Be5 {[%emt 0:00:00]} Rf7 {[%emt 0:01:55]} 23. Bxd4 {[%emt 0:00:00]} Nxc2 {[%emt 0:00:04]} 24. Bxc2 {[%emt 0:00:00]} Rxc2 {[%emt 0:00:02]} 25. Rfe1 {[%emt 0:00:00]} Rd2 {[%emt 0:00:21]} 26. Be3 {[%emt 0:00:00]} Rc2 {[%emt 0:00:21]} 27. Kf1 {[%emt 0:00:00]} Rd7 {[%emt 0:01:11]} 28. Re2 {[%emt 0:00:00]} Rdc7 {[%emt 0:00:14]} 29. Rxc2 {[%emt 0:00:00]} Rxc2 {[%emt 0:00:02]} 30. a3 {[%emt 0:00:00]} Rb2 {[%emt 0:00:42]} 31. b4 {[%emt 0:00:00]} e5 {[%emt 0:01:48]} 32. Rc1 {[%emt 0:00:00]} Ra2 {[%emt 0:00:10]} 33. Rc8+ {[%emt 0:00:00]} Kh7 {[%emt 1:07:21]} 34. Bc1 {[%emt 0:00:00]} Kg6 {[%emt 0:00:00]} 35. Rc7 {[%emt 0:00:00]} Ra1 {[%emt 0:00:00]} 36. Ke2 {[%emt 0:00:00]} Kf5 {[%emt 0:00:00]} 37. Kd3 {[%emt 0:00:00]} g5 {[%emt 0:00:00]} 38. Kc2 {[%emt 0:00:00]} Kg4 {[%emt 0:00:00]} 39. Kb2 {[%emt 0:00:00]} Rxc1 {[%emt 0:00:00]} 40. Kxc1 {[%emt 0:00:00]} Kh3 {[%emt 0:00:00]} 41. Rh7 {[%emt 0:00:00]} Kxh2 {[%emt 0:00:00]} 42. Rxh6+ {[%emt 0:00:00]} Kg2 {[%emt 0:00:00]} 43. Rg6 {[%emt 0:00:00]} Kxf2 {[%emt 0:00:00]} 44. Rxg5 {[%emt 0:00:00]} e4 {[%emt 0:00:00]} 45. Rf5+ {[%emt 0:00:00]} Kxg3 {[%emt 0:00:00]} 46. Kd2 {[%emt 0:00:00]} Kg4 {[%emt 0:00:00]} 47. Rf7 {[%emt 0:00:00]} a5 {[%emt 0:00:00]} 48. bxa5 {[%emt 0:00:00]} bxa5 {[%emt 0:00:00]} 49. Ke3 {[%emt 0:00:00]} 1-0

[Event "8th Montevideo Open 2025"]
[Site "Montevideo"]
[Date "2025.02.07"]
[Round "7.22"]
[White "Fernandez Rodriguez, Jose Antonio"]
[Black "Escofet, Jaime"]
[Result "0-1"]
[Annotator "NA RC"]
[ECO "B15"]
[WhiteElo "2140"]
[BlackElo "1951"]
[PlyCount "120"]
[EventDate "2025.02.01"]
[EventType "swiss"]
[EventCountry "URU"]
[SourceTitle "playchess.com"]
[Source "ChessBase"]
[SourceQuality "1"]
[TimeControl "5400+30"]

1. e4 {[%emt 0:04:58]} c6 {[%emt 0:00:05]} 2. d4 {[%emt 0:00:15]} d5 {[%emt 0:00:06]} 3. Nc3 {[%emt 0:00:10]} dxe4 {[%emt 0:00:06]} 4. Nxe4 {[%emt 0:00:05]} Nf6 {[%emt 0:00:07]} 5. Ng5 {[%emt 0:00:32]} h6 {[%emt 0:00:44]} 6. N5f3 {[%emt 0:00:04]} Bg4 {[%emt 0:00:58]} 7. h3 {[%emt 0:00:09]} Bh5 {[%emt 0:00:11]} 8. Bc4 {[%emt 0:00:59]} e6 {[%emt 0:01:03]} 9. g4 {[%emt 0:01:32]} Bg6 {[%emt 0:00:06]} 10. Ne2 {[%emt 0:07:30]} Bd6 {[%emt 0:07:13]} 11. Nf4 {[%emt 0:02:58]} Be4 {[%emt 0:01:03]} 12. c3 {[%emt 0:11:06]} Qc7 {[%emt 0:02:34]} 13. Nd3 {[%emt 0:06:10]} Nbd7 {[%emt 0:00:29]} 14. Be3 {[%emt 0:01:29]} Nb6 {[%emt 0:00:51]} 15. Bb3 {[%emt 0:01:45]} Nbd5 {[%emt 0:00:55]} 16. Bxd5 {[%emt 0:01:01]} Nxd5 {[%emt 0:01:53]} 17. Qe2 {[%emt 0:02:51]} Qa5 {[%emt 0:03:24]} 18. Bd2 {[%emt 0:02:37]} Nf6 {[%emt 0:03:02]} 19. c4 {[%emt 0:07:27]} Qc7 {[%emt 0:06:46]} 20. Rg1 {[%emt 0:01:01]} O-O-O {[%emt 0:00:57]} 21. O-O-O {[%emt 0:05:15]} Bxd3 {[%emt 0:00:28]} 22. Qxd3 {[%emt 0:00:07]} Bf4 {[%emt 0:00:04]} 23. g5 {[%emt 0:04:40]} hxg5 {[%emt 0:00:37]} 24. Nxg5 {[%emt 0:00:39]} g6 {[%emt 0:11:05]} 25. Kb1 {[%emt 0:02:26]} Bxd2 {[%emt 0:00:21]} 26. Rxd2 {[%emt 0:00:37]} Rh4 {[%emt 0:01:00]} 27. Qe3 {[%emt 0:05:03]} Rd7 {[%emt 0:02:57]} 28. Rgd1 {[%emt 0:03:38]} Qf4 {[%emt 0:01:01]} 29. Qg3 {[%emt 0:03:28]} Ne4 {[%emt 0:02:20]} 30. Qxf4 {[%emt 0:01:50]} Rxf4 {[%emt 0:00:09]} 31. Nxe4 {[%emt 0:00:05]} Rxe4 {[%emt 0:00:08]} 32. Kc2 {[%emt 0:00:33]} Rf4 {[%emt 0:00:19]} 33. a3 {[%emt 0:02:37]} Rf3 {[%emt 0:00:31]} 34. Rh1 {[%emt 0:00:15]} Rd8 {[%emt 0:01:15]} 35. Rh2 {[%emt 0:00:58]} Rh8 {[%emt 0:00:41]} 36. Rd3 {[%emt 0:00:20]} Rf4 {[%emt 0:00:08]} 37. Kc3 {[%emt 0:00:54]} Rh5 {[%emt 0:00:56]} 38. Re3 {[%emt 0:00:53]} Kd7 {[%emt 0:00:37]} 39. Rg2 {[%emt 0:01:55]} Rhf5 {[%emt 0:00:20]} 40. Re2 {[%emt 0:06:14]} Rf3+ {[%emt 0:00:14]} 41. Kd2 {[%emt 0:00:32]} Rxh3 {[%emt 0:00:13]} 42. Re3 {[%emt 0:00:14]} Rh4 {[%emt 0:00:31]} 43. Rd3 {[%emt 0:00:40]} Rff4 {[%emt 0:02:42]} 44. Kc3 {[%emt 0:00:32]} Ke7 {[%emt 0:02:06]} 45. b4 {[%emt 0:00:55]} Kd7 {[%emt 0:01:01]} 46. a4 {[%emt 0:01:07]} Kc7 {[%emt 0:00:25]} 47. a5 {[%emt 0:00:50]} e5 {[%emt 0:01:45]} 48. f3 {[%emt 0:07:57]} exd4+ {[%emt 0:00:36]} 49. Kb3 {[%emt 0:00:28]} Rh3 {[%emt 0:00:15]} 50. Rf2 {[%emt 0:00:47]} g5 {[%emt 0:00:08]} 51. c5 {[%emt 0:00:24]} g4 {[%emt 0:00:21]} 52. Kc4 {[%emt 0:00:10]} Rhxf3 {[%emt 0:00:19]} 53. Rfxf3 {[%emt 0:00:27]} gxf3 {[%emt 0:00:23]} 54. Rd1 {[%emt 0:01:33]} f2 {[%emt 0:00:11]} 55. Rf1 {[%emt 0:00:07]} a6 {[%emt 0:00:10]} 56. Kd3 {[%emt 0:00:06]} Kd7 {[%emt 0:00:08]} 57. Ke2 {[%emt 0:00:18]} Ke6 {[%emt 0:00:08]} 58. Rh1 {[%emt 0:00:44]} f1=Q+ {[%emt 0:00:12]} 59. Rxf1 {[%emt 0:00:03]} Rxf1 {[%emt 0:00:16]} 60. Kxf1 {[%emt 0:00:02]} Kd5 {[%emt 0:00:06]} 0-1

[Event "8th Montevideo Open 2025"]
[Site "Montevideo"]
[Date "2025.02.06"]
[Round "7.23"]
[White "Balseca Moreno, Diego"]
[Black "Rey Besada, Fernando"]
[Result "1-0"]
[Annotator "TA"]
[ECO "E90"]
[WhiteElo "2269"]
[BlackElo "2135"]
[PlyCount "33"]
[EventDate "2025.02.01"]
[EventType "swiss"]
[EventCountry "URU"]
[SourceTitle "playchess.com"]
[Source "ChessBase"]
[SourceQuality "1"]
[TimeControl "5400+30"]

{[%evp 18,33,39,34,72,76,98,102,103,92,105,85,126,81,210,209,935,929]} 1. d4 {[%emt 1:31:00]} Nf6 {[%emt 1:31:00]} 2. c4 {[%emt 0:00:30]} g6 {[%emt 0:00:30]} 3. Nc3 {[%emt 0:00:30]} Bg7 {[%emt 0:00:30]} 4. e4 {[%emt 0:00:30]} d6 {[%emt 0:00:30]} 5. Nf3 {[%emt 0:00:30][%cal Bg1f3,Bf3d2,Bd2f1][%mdl 32]} O-O {[%emt 0:00:30]} 6. h3 {[%emt 0:00:30]} e5 {[%emt 0:00:30]} 7. d5 {[%emt 0:00:30]} a5 {[%emt 0:00:30]} 8. Be3 {[%emt 0:00:30]} Na6 {[%emt 0:00:30]} 9. g4 {[%emt 0:00:30][%cal Bg2g4,Bg4g5][%mdl 32]} Nc5 {[%emt 0:00:30]} 10. Nd2 {[%emt 0:00:30]} b6 {[%emt 0:00:30] E90: King's Indian: Classical: Early deviations and 6 h3.} 11. Be2 {[%emt 0:00:30]} Kh8 {[%emt 0:00:30]} 12. h4 $146 {[%emt 0:00:30]} (12. Qc2 Ng8 13. O-O-O f5 14. f3 f4 15. Bxc5 bxc5 16. h4 Bd7 17. g5 Be8 18. Bf1 {1-0 Zherebtsova,A (2182)-Marcinczyk,M (2020) Titled Tuesday intern op 16th Nov blitz 2021 (9)}) 12... Ng8 {[%emt 0:00:30] White is better.} 13. Nf1 {[%emt 0:00:30]} h6 {[%emt 0:00:30]} 14. g5 {[%emt 0:00:30]} f5 {[%emt 0:00:30]} 15. h5 {[%emt 0:00:30]} Qe8 {[%emt 0:00:30]} (15... hxg5 $16 {might work better.} 16. hxg6+ Nh6 17. exf5 Kg8 (17... Bxf5 $2 {loses.} 18. Qc1 $18) 18. Bxc5 bxc5) 16. hxg6 $18 {[%emt 0:00:30]} Qxg6 {[%emt 0:00:30] [#]} (16... f4) 17. Bh5 {[%emt 0:00:30] White took control after the opening.   Weighted Error Value: White=0.04 (flawless) /Black=1.16  Mistake:       	---       	Black=2      Inaccurate:     	---       	Black=1      OK:         	White=5     	Black=1      Best:        	White=1     	---} 1-0

[Event "8th Montevideo Open 2025"]
[Site "Montevideo"]
[Date "2025.02.07"]
[Round "7.24"]
[White "Lopez Betancourt, Bryan"]
[Black "Volpe, Agustin"]
[Result "1/2-1/2"]
[Annotator "NA RC"]
[ECO "B14"]
[WhiteElo "1897"]
[BlackElo "1873"]
[PlyCount "53"]
[EventDate "2025.02.01"]
[EventType "swiss"]
[EventCountry "URU"]
[SourceTitle "playchess.com"]
[Source "ChessBase"]
[SourceQuality "1"]
[TimeControl "5400+30"]

1. e4 {[%emt 0:00:01]} c5 {[%emt 0:01:07]} 2. c3 {[%emt 0:00:30]} d5 {[%emt 0:00:30]} 3. exd5 {[%emt 0:00:30]} Nf6 {[%emt 0:00:30]} 4. Nf3 {[%emt 0:00:30]} Nxd5 {[%emt 0:00:30]} 5. d4 {[%emt 0:00:30]} cxd4 {[%emt 0:00:30]} 6. cxd4 {[%emt 0:00:30]} Nc6 {[%emt 0:00:30]} 7. Nc3 {[%emt 0:00:30]} g6 {[%emt 0:00:30]} 8. Bc4 {[%emt 0:00:30]} Nb6 {[%emt 0:00:30]} 9. Bb3 {[%emt 0:00:30]} Bg7 {[%emt 0:00:30]} 10. d5 {[%emt 0:00:30]} Nb4 {[%emt 0:00:30]} 11. O-O {[%emt 0:00:30]} O-O {[%emt 0:00:30]} 12. Qd2 {[%emt 0:00:30]} Bf5 {[%emt 0:00:30]} 13. Nh4 {[%emt 0:00:30]} Bd7 {[%emt 0:00:30]} 14. Nf3 {[%emt 0:00:30]} Rc8 {[%emt 0:00:30]} 15. Rd1 {[%emt 0:00:30]} Bg4 {[%emt 0:00:30]} 16. Qf4 {[%emt 0:00:30]} Bxf3 {[%emt 0:00:30]} 17. Qxf3 {[%emt 0:00:30]} a5 {[%emt 0:00:30]} 18. Be3 {[%emt 0:00:30]} Nc4 {[%emt 0:00:30]} 19. Bxc4 {[%emt 0:00:30]} Rxc4 {[%emt 0:00:30]} 20. Qe2 {[%emt 0:00:30]} Rc8 {[%emt 0:00:30]} 21. a3 {[%emt 0:00:30]} Na6 {[%emt 0:00:30]} 22. Qb5 {[%emt 0:00:30]} Qc7 {[%emt 0:00:30]} 23. Bb6 {[%emt 0:00:30]} Qf4 {[%emt 0:00:30]} 24. Be3 {[%emt 0:00:30]} Qc7 {[%emt 0:00:30]} 25. Bb6 {[%emt 0:00:30]} Qf4 {[%emt 0:00:30]} 26. Be3 {[%emt 0:00:30]} Qc7 {[%emt 0:00:30]} 27. Bb6 {[%emt 0:00:30]} 1/2-1/2